[Event "Groningen Festival 2019-A"]
[Site "Groningen"]
[Date "2019.12.28"]
[Round "7.2"]
[White "Lubbe, Nikolas"]
[Black "Vrolijk, Liam"]
[Result "0-1"]
[ECO "D45"]
[WhiteElo "2451"]
[BlackElo "2467"]
[Annotator "ChessBase"]
[PlyCount "68"]
[EventDate "2019.12.15"]
[EventType "swiss"]
[EventCountry "NED"]
[SourceTitle "playchess.com"]
[Source "ChessBase"]
[SourceQuality "1"]
[TimeControl "40/5400+30:1800+30"]

1. c4 {[%emt 0:00:00]} c6 {[%emt 0:02:19]} 2. d4 {[%emt 0:02:39]} d5 {[%emt 0:00:16]} 3. Nc3 {[%emt 0:00:13]} Nf6 {[%emt 0:00:11]} 4. Nf3 {[%emt 0:00:27]} e6 {[%emt 0:00:15]} 5. e3 {[%emt 0:00:52]} Nbd7 {[%emt 0:01:16]} 6. Qc2 {[%emt 0:01:51]} Bd6 {[%emt 0:00:13]} 7. b3 {[%emt 0:02:33]} O-O {[%emt 0:00:26]} 8. Bb2 {[%emt 0:00:20]} e5 {[%emt 0:02:51]} 9. cxd5 {[%emt 0:03:19]} cxd5 {[%emt 0:00:18]} 10. dxe5 {[%emt 0:13:17]} Nxe5 {[%emt 0:00:09]} 11. Nd4 {[%emt 0:05:09]} Nc6 {[%emt 0:11:44]} 12. Rd1 {[%emt 0:04:59]} Nxd4 {[%emt 0:12:52]} 13. Rxd4 {[%emt 0:00:13]} Be5 {[%emt 0:00:47]} 14. Rd2 {[%emt 0:02:37]} Be6 {[%emt 0:04:38]} 15. f4 {[%emt 0:18:12]} Bd6 {[%emt 0:04:36]} 16. f5 {[%emt 0:05:22]} Bd7 {[%emt 0:02:43]} 17. Nxd5 {[%emt 0:01:44]} Nxd5 {[%emt 0:04:07]} 18. Rxd5 {[%emt 0:00:02]} Bc6 {[%emt 0:03:39]} 19. Rd4 {[%emt 0:00:47]} Qe7 {[%emt 0:01:16]} 20. Be2 {[%emt 0:09:26]} Be5 {[%emt 0:08:48]} 21. Rg4 {[%emt 0:01:48]} h5 {[%emt 0:02:03]} 22. f6 {[%emt 0:03:12]} Bxf6 {[%emt 0:02:54]} 23. Bxf6 {[%emt 0:02:34]} Qxf6 {[%emt 0:00:03]} 24. Rf4 {[%emt 0:01:48]} Qa1+ {[%emt 0:08:50]} 25. Bd1 {[%emt 0:00:03]} Rac8 {[%emt 0:01:48]} 26. Qd2 {[%emt 0:01:25]} Rfd8 {[%emt 0:02:10]} 27. Rd4 {[%emt 0:00:07]} Rxd4 {[%emt 0:00:36]} 28. exd4 {[%emt 0:00:22]} Re8+ {[%emt 0:03:10]} 29. Kf2 {[%emt 0:00:39]} Re4 {[%emt 0:01:44]} 30. d5 {[%emt 0:06:49]} Rd4 {[%emt 0:01:41]} 31. Be2 {[%emt 0:00:09]} Rxd2 {[%emt 0:00:46]} 32. Rxa1 {[%emt 0:00:01]} Bb5 {[%emt 0:04:23]} 33. Re1 {[%emt 0:00:06]} Rxa2 {[%emt 0:02:43]} 34. d6 {[%emt 0:00:01]} Kf8 {[%emt 0:00:44]} 0-1

[Event "Groningen Festival 2019-A"]
[Site "Groningen"]
[Date "2019.12.28"]
[Round "7.3"]
[White "Ulybin, Mikhail"]
[Black "Van Foreest, Lucas"]
[Result "0-1"]
[ECO "A60"]
[WhiteElo "2453"]
[BlackElo "2526"]
[Annotator "ChessBase"]
[PlyCount "60"]
[EventDate "2019.12.15"]
[EventType "swiss"]
[EventCountry "NED"]
[SourceTitle "playchess.com"]
[Source "ChessBase"]
[SourceQuality "1"]
[TimeControl "40/5400+30:1800+30"]

1. d4 {[%emt 0:06:52]} Nf6 {[%emt 0:00:00]} 2. c4 {[%emt 0:01:06]} e6 {[%emt 0:00:00]} 3. g3 {[%emt 0:01:14]} c5 {[%emt 0:00:16]} 4. d5 {[%emt 0:02:42]} exd5 {[%emt 0:00:59]} 5. cxd5 {[%emt 0:00:25]} b5 {[%emt 0:00:04]} 6. Nf3 {[%emt 0:04:23]} g6 {[%emt 0:02:43]} 7. e4 {[%emt 0:06:05]} Nxe4 {[%emt 0:07:26]} 8. Bd3 {[%emt 0:19:00]} Nd6 {[%emt 0:26:29]} 9. O-O {[%emt 0:03:01]} Be7 {[%emt 0:02:41]} 10. Bh6 {[%emt 0:11:30]} f6 {[%emt 0:02:18]} 11. Qc2 {[%emt 0:15:34]} Bb7 {[%emt 0:31:34]} 12. Bxg6+ {[%emt 0:14:30]} hxg6 {[%emt 0:00:17]} 13. Qxg6+ {[%emt 0:00:14]} Nf7 {[%emt 0:00:01]} 14. d6 {[%emt 0:03:32]} Bxf3 {[%emt 0:02:31]} 15. Re1 {[%emt 0:01:32]} Nc6 {[%emt 0:00:41]} 16. dxe7 {[%emt 0:01:46]} Qb6 {[%emt 0:03:35]} 17. Qg7 {[%emt 0:03:46]} Nxe7 {[%emt 0:01:51]} 18. Nc3 {[%emt 0:00:36]} O-O-O {[%emt 0:02:38]} 19. Qxf7 {[%emt 0:00:48]} Rxh6 {[%emt 0:03:14]} 20. Rxe7 {[%emt 0:00:34]} Rxh2 {[%emt 0:00:09]} 21. Kxh2 {[%emt 0:00:09]} Rh8+ {[%emt 0:00:05]} 22. Qh7 {[%emt 0:00:07]} Rxh7+ {[%emt 0:00:01]} 23. Rxh7 {[%emt 0:00:04]} c4 {[%emt 0:00:58]} 24. Kg1 {[%emt 0:00:48]} b4 {[%emt 0:00:05]} 25. Nd1 {[%emt 0:01:19]} c3 {[%emt 0:03:56]} 26. Rh4 {[%emt 0:00:43]} d5 {[%emt 0:00:25]} 27. Rc1 {[%emt 0:00:35]} Bxd1 {[%emt 0:01:00]} 28. Rxd1 {[%emt 0:00:15]} cxb2 {[%emt 0:00:05]} 29. Rh7 {[%emt 0:00:48]} Qc6 {[%emt 0:00:58]} 30. Kg2 {[%emt 0:00:29]} d4+ {[%emt 0:00:10]} 0-1

[Event "Groningen Festival 2019-A"]
[Site "Groningen"]
[Date "2019.12.28"]
[Round "7.4"]
[White "Sargsyan, Shant"]
[Black "Ernst, Sipke"]
[Result "1-0"]
[ECO "C97"]
[WhiteElo "2601"]
[BlackElo "2541"]
[Annotator "RC"]
[PlyCount "75"]
[EventDate "2019.12.15"]
[EventType "swiss"]
[EventCountry "NED"]
[SourceTitle "playchess.com"]
[Source "ChessBase"]
[SourceQuality "1"]
[TimeControl "40/5400+30:1800+30"]

1. e4 {[%emt 0:11:16]} e5 {[%emt 0:00:00]} 2. Nf3 {[%emt 0:00:09]} Nc6 {[%emt 0:00:00]} 3. Bb5 {[%emt 0:00:30]} a6 {[%emt 0:00:00]} 4. Ba4 {[%emt 0:00:08]} Nf6 {[%emt 0:00:00]} 5. O-O {[%emt 0:00:43]} Be7 {[%emt 0:00:00]} 6. Re1 {[%emt 0:00:34]} b5 {[%emt 0:00:00]} 7. Bb3 {[%emt 0:00:06]} d6 {[%emt 0:00:00]} 8. c3 {[%emt 0:00:35]} O-O {[%emt 0:00:05]} 9. h3 {[%emt 0:00:05]} Na5 {[%emt 0:00:50]} 10. Bc2 {[%emt 0:00:13]} c5 {[%emt 0:00:01]} 11. d4 {[%emt 0:00:36]} Qc7 {[%emt 0:00:06]} 12. d5 {[%emt 0:00:36]} c4 {[%emt 0:00:11]} 13. b4 {[%emt 0:06:14]} cxb3 {[%emt 0:00:33]} 14. axb3 {[%emt 0:00:07]} Bd7 {[%emt 0:00:52]} 15. Ba3 {[%emt 0:04:24]} Bd8 {[%emt 0:00:04]} 16. Nbd2 {[%emt 0:02:16]} Ne8 {[%emt 0:00:34]} 17. Bd3 Qxc3 {[%emt 0:05:47]} 18. Bxb5 {[%emt 0:13:52]} axb5 {[%emt 0:00:16]} 19. Rc1 {[%emt 0:00:14]} Qd3 {[%emt 0:04:14]} 20. Re3 {[%emt 0:00:02]} Qxe3 {[%emt 0:00:08]} 21. fxe3 {[%emt 0:00:04]} Nb7 {[%emt 0:05:47]} 22. Ra1 {[%emt 0:04:53]} Bb6 {[%emt 0:03:50]} 23. Kf2 {[%emt 0:05:38]} Nc7 {[%emt 0:07:26]} 24. g4 {[%emt 0:07:26]} Nc5 {[%emt 0:00:30]} 25. Ne1 {[%emt 0:00:30]} g6 {[%emt 0:00:30]} 26. Bxc5 {[%emt 0:00:30]} Bxc5 {[%emt 0:17:01]} 27. Nd3 {[%emt 0:06:19]} Bb6 {[%emt 0:00:30]} 28. Ke2 {[%emt 0:00:30]} Rae8 {[%emt 0:00:30]} 29. Nb4 {[%emt 0:00:30]} Bc5 {[%emt 0:00:30]} 30. Qc1 {[%emt 0:00:30]} Bxb4 {[%emt 0:00:30]} 31. Qxc7 {[%emt 0:00:30]} Re7 {[%emt 0:00:30]} 32. Qb6 {[%emt 0:00:30]} Rc8 {[%emt 0:00:30]} 33. Nf3 {[%emt 0:00:30]} Kf8 {[%emt 0:00:30]} 34. Ne1 {[%emt 0:00:30]} Bc5 {[%emt 0:00:30]} 35. Qa5 {[%emt 0:00:30]} Be8 {[%emt 0:00:30]} 36. Rc1 {[%emt 0:00:30]} Rb8 {[%emt 0:00:30]} 37. Nd3 {[%emt 0:00:30]} Bb6 {[%emt 0:00:30]} 38. Qb4 {[%emt 0:00:30]} 1-0

[Event "Groningen Festival 2019-A"]
[Site "Groningen"]
[Date "2019.12.28"]
[Round "7.5"]
[White "Gomes, Mary Ann"]
[Black "Tiviakov, Sergei"]
[Result "1-0"]
[ECO "E17"]
[WhiteElo "2324"]
[BlackElo "2615"]
[Annotator "ChessBase"]
[PlyCount "66"]
[EventDate "2019.12.15"]
[EventType "swiss"]
[EventCountry "NED"]
[SourceTitle "playchess.com"]
[Source "ChessBase"]
[SourceQuality "1"]
[TimeControl "40/5400+30:1800+30"]

1. Nf3 {[%emt 0:00:00]} Nf6 {[%emt 0:00:00]} 2. g3 {[%emt 0:00:00]} b6 {[%emt 0:00:00]} 3. Bg2 {[%emt 0:00:00]} Bb7 {[%emt 0:00:00]} 4. O-O {[%emt 0:00:04]} e6 {[%emt 0:00:00]} 5. c4 {[%emt 0:00:05]} Be7 {[%emt 0:01:01]} 6. Nc3 {[%emt 0:00:28]} O-O {[%emt 0:09:35]} 7. Re1 {[%emt 0:00:09]} d5 {[%emt 0:02:01]} 8. cxd5 {[%emt 0:00:11]} exd5 {[%emt 0:06:12]} 9. d4 {[%emt 0:00:09]} Ne4 {[%emt 0:05:37]} 10. Qc2 {[%emt 0:08:49]} Nc6 {[%emt 0:04:54]} 11. Nxe4 {[%emt 0:10:14]} Nb4 {[%emt 0:00:26]} 12. Nf6+ {[%emt 0:00:06]} Bxf6 {[%emt 0:00:07]} 13. Qb3 {[%emt 0:03:19]} Nc6 {[%emt 0:09:40]} 14. Qd1 {[%emt 0:01:56]} Re8 {[%emt 0:01:04]} 15. h4 {[%emt 0:01:17]} h6 {[%emt 0:02:42]} 16. Bf4 {[%emt 0:00:28]} Re4 {[%emt 0:35:46]} 17. Rc1 {[%emt 0:05:30]} Nxd4 {[%emt 0:01:19]} 18. Rxc7 {[%emt 0:06:21]} Ba6 {[%emt 0:01:16]} 19. Nxd4 {[%emt 0:00:31]} Rxf4 {[%emt 0:00:36]} 20. gxf4 {[%emt 0:00:40]} Qxc7 {[%emt 0:00:04]} 21. e3 {[%emt 0:00:56]} Bxh4 {[%emt 0:02:28]} 22. Bxd5 {[%emt 0:02:29]} Rd8 {[%emt 0:00:10]} 23. Nc6 {[%emt 0:00:43]} Rf8 {[%emt 0:01:32]} 24. Qa4 {[%emt 0:12:11]} Qd6 {[%emt 0:04:29]} 25. Qe4 {[%emt 0:04:12]} Bb7 {[%emt 0:01:28]} 26. Rc1 {[%emt 0:03:51]} Kh8 {[%emt 0:01:45]} 27. b4 {[%emt 0:06:45]} Qd7 {[%emt 0:01:45]} 28. Qf3 {[%emt 0:03:14]} b5 {[%emt 0:03:36]} 29. Rc5 {[%emt 0:01:06]} Bf6 {[%emt 0:03:32]} 30. Rxb5 {[%emt 0:05:28]} a6 {[%emt 0:00:49]} 31. Rc5 {[%emt 0:01:03]} Qd6 {[%emt 0:00:32]} 32. a3 {[%emt 0:01:22]} Bb2 {[%emt 0:00:20]} 33. e4 {[%emt 0:01:07]} Rc8 {[%emt 0:00:52]} 1-0

[Event "Groningen Festival 2019-A"]
[Site "Groningen"]
[Date "2019.12.28"]
[Round "7.6"]
[White "Danada, Tomas"]
[Black "Krasenkow, Michal"]
[Result "1/2-1/2"]
[ECO "A42"]
[WhiteElo "2271"]
[BlackElo "2611"]
[Annotator "ChessBase"]
[PlyCount "127"]
[EventDate "2019.12.15"]
[EventType "swiss"]
[EventCountry "NED"]
[SourceTitle "playchess.com"]
[Source "ChessBase"]
[SourceQuality "1"]
[TimeControl "40/5400+30:1800+30"]

1. d4 {[%emt 0:03:23]} g6 {[%emt 0:00:00]} 2. c4 {[%emt 0:00:09]} Bg7 {[%emt 0:00:00]} 3. Nc3 {[%emt 0:00:13]} d6 {[%emt 0:00:01]} 4. e4 {[%emt 0:00:13]} e5 {[%emt 0:00:33]} 5. d5 {[%emt 0:00:16]} a5 {[%emt 0:07:40]} 6. Be3 {[%emt 0:00:51]} Bh6 {[%emt 0:03:23]} 7. Bxh6 {[%emt 0:01:36]} Nxh6 {[%emt 0:00:01]} 8. Qd2 {[%emt 0:00:19]} Ng4 {[%emt 0:00:20]} 9. h4 {[%emt 0:10:48]} h5 {[%emt 0:00:16]} 10. f3 {[%emt 0:06:37]} Nh6 {[%emt 0:05:15]} 11. O-O-O {[%emt 0:01:32]} Na6 {[%emt 0:00:49]} 12. Kb1 {[%emt 0:01:22]} Nc5 {[%emt 0:01:06]} 13. Be2 {[%emt 0:00:53]} f5 {[%emt 0:08:09]} 14. Bd3 {[%emt 0:04:47]} f4 {[%emt 0:10:06]} 15. Bc2 {[%emt 0:03:50]} Bd7 {[%emt 0:02:40]} 16. g3 {[%emt 0:03:05]} fxg3 {[%emt 0:23:25]} 17. Qg2 {[%emt 0:00:23]} g5 {[%emt 0:04:35]} 18. Qxg3 {[%emt 0:00:43]} Nf7 {[%emt 0:06:48]} 19. Nge2 {[%emt 0:05:15]} Qf6 {[%emt 0:02:30]} 20. Rdg1 {[%emt 0:02:29]} Rg8 {[%emt 0:00:28]} 21. f4 {[%emt 0:02:55]} exf4 {[%emt 0:01:31]} 22. Nxf4 {[%emt 0:00:19]} Bg4 {[%emt 0:03:04]} 23. hxg5 {[%emt 0:05:40]} Rxg5 {[%emt 0:00:15]} 24. Qe3 {[%emt 0:09:52]} O-O-O {[%emt 0:02:17]} 25. Nxh5 {[%emt 0:04:19]} Rxh5 {[%emt 0:04:56]} 26. Rxh5 {[%emt 0:00:07]} Bxh5 {[%emt 0:00:05]} 27. Qh3+ {[%emt 0:00:06]} Kb8 {[%emt 0:00:03]} 28. Qxh5 {[%emt 0:00:07]} Ne5 {[%emt 0:02:21]} 29. Qe2 {[%emt 0:04:12]} Rh8 {[%emt 0:00:10]} 30. Na4 {[%emt 0:03:16]} Nf3 {[%emt 0:05:54]} 31. Rd1 {[%emt 0:05:40]} Nxa4 {[%emt 0:00:51]} 32. Bxa4 {[%emt 0:01:06]} Rh2 {[%emt 0:00:12]} 33. e5 {[%emt 0:00:14]} Qf4 {[%emt 0:02:06]} 34. Qd3 {[%emt 0:01:03]} Nxe5 {[%emt 0:01:08]} 35. Qd4 {[%emt 0:03:26]} Rh4 {[%emt 0:03:43]} 36. Qxf4 {[%emt 0:00:56]} Rxf4 {[%emt 0:00:00]} 37. b3 {[%emt 0:00:31]} Ka7 {[%emt 0:00:07]} 38. Kc2 {[%emt 0:04:39]} Kb6 {[%emt 0:00:10]} 39. Kc3 {[%emt 0:01:03]} Kc5 {[%emt 0:00:20]} 40. a3 {[%emt 0:01:38]} Rf3+ {[%emt 0:00:18]} 41. Kc2 {[%emt 0:31:01]} Ng4 {[%emt 0:31:46]} 42. Rd3 {[%emt 0:01:49]} Rf2+ {[%emt 0:00:00]} 43. Kc3 {[%emt 0:00:00]} Ra2 {[%emt 0:00:00]} 44. b4+ {[%emt 0:00:00]} Kb6 {[%emt 0:00:00]} 45. Kb3 {[%emt 0:00:00]} Re2 {[%emt 0:00:00]} 46. Rc3 {[%emt 0:00:00]} Nf6 {[%emt 0:00:00]} 47. Rc2 {[%emt 0:00:00]} Re1 {[%emt 0:00:00]} 48. Kb2 {[%emt 0:00:00]} Ne4 {[%emt 0:00:00]} 49. Rg2 {[%emt 0:00:00]} Re3 {[%emt 0:00:00]} 50. Bc2 {[%emt 0:00:00]} Nf6 {[%emt 0:00:00]} 51. Rg7 {[%emt 0:00:00]} axb4 {[%emt 0:00:00]} 52. axb4 {[%emt 0:00:00]} c6 {[%emt 0:00:00]} 53. dxc6 {[%emt 0:00:00]} bxc6 {[%emt 0:00:00]} 54. Rg5 {[%emt 0:00:00]} Nd7 {[%emt 0:00:00]} 55. Rg4 {[%emt 0:00:00]} Ne5 {[%emt 0:00:00]} 56. Rd4 {[%emt 0:00:00]} Kc7 {[%emt 0:00:00]} 57. Rh4 {[%emt 0:00:00]} Kd7 {[%emt 0:00:00]} 58. Bf5+ {[%emt 0:00:00]} Ke7 {[%emt 0:00:00]} 59. b5 {[%emt 0:00:27]} Kf6 {[%emt 0:00:00]} 60. Bc2 {[%emt 0:05:41]} Kg5 {[%emt 0:00:00]} 61. Re4 {[%emt 0:02:48]} Rxe4 {[%emt 0:02:45]} 62. Bxe4 {[%emt 0:00:03]} Nxc4+ {[%emt 0:00:07]} 63. Kc3 {[%emt 0:00:08]} cxb5 {[%emt 0:00:03]} 64. Bc6 {[%emt 0:00:20]} 1/2-1/2

[Event "Groningen Festival 2019-A"]
[Site "Groningen"]
[Date "2019.12.28"]
[Round "7.7"]
[White "Mollema, Thomas"]
[Black "Gleizerov, Evgeny"]
[Result "0-1"]
[ECO "C01"]
[WhiteElo "2207"]
[BlackElo "2508"]
[Annotator "ChessBase"]
[PlyCount "96"]
[EventDate "2019.12.15"]
[EventType "swiss"]
[EventCountry "NED"]
[SourceTitle "playchess.com"]
[Source "ChessBase"]
[SourceQuality "1"]
[TimeControl "40/5400+30:1800+30"]

1. e4 {[%emt 0:00:00]} e6 {[%emt 0:00:00]} 2. d4 {[%emt 0:00:00]} d5 {[%emt 0:00:00]} 3. exd5 {[%emt 0:00:00]} exd5 {[%emt 0:00:00]} 4. Nf3 {[%emt 0:00:10]} Bd6 {[%emt 0:00:00]} 5. Bd3 {[%emt 0:00:12]} Ne7 {[%emt 0:00:00]} 6. O-O {[%emt 0:01:09]} Nbc6 {[%emt 0:00:00]} 7. c3 {[%emt 0:00:31]} Bg4 {[%emt 0:00:04]} 8. a4 {[%emt 0:01:15]} Qd7 {[%emt 0:02:15]} 9. Re1 {[%emt 0:01:48]} O-O {[%emt 0:00:43]} 10. h3 {[%emt 0:06:39]} Bf5 {[%emt 0:01:42]} 11. Na3 {[%emt 0:01:03]} a6 {[%emt 0:03:20]} 12. Nc2 {[%emt 0:07:09]} Rfe8 {[%emt 0:07:27]} 13. Ne3 {[%emt 0:01:23]} Bxd3 {[%emt 0:08:13]} 14. Qxd3 {[%emt 0:01:03]} Na5 {[%emt 0:00:28]} 15. Qc2 {[%emt 0:12:14]} Nc4 {[%emt 0:04:49]} 16. b3 {[%emt 0:09:22]} Nxe3 {[%emt 0:00:48]} 17. Bxe3 {[%emt 0:01:35]} Rac8 {[%emt 0:09:40]} 18. Re2 {[%emt 0:05:46]} b6 {[%emt 0:06:16]} 19. Qd3 {[%emt 0:02:34]} a5 {[%emt 0:00:53]} 20. Rae1 {[%emt 0:01:33]} c5 {[%emt 0:03:20]} 21. dxc5 {[%emt 0:06:55]} bxc5 {[%emt 0:01:58]} 22. c4 {[%emt 0:01:06]} d4 {[%emt 0:11:02]} 23. Bd2 {[%emt 0:00:20]} Nc6 {[%emt 0:01:51]} 24. Ng5 {[%emt 0:02:31]} g6 {[%emt 0:00:13]} 25. Qf3 {[%emt 0:02:26]} Rxe2 {[%emt 0:04:44]} 26. Rxe2 {[%emt 0:04:17]} Qf5 {[%emt 0:00:19]} 27. Qxf5 {[%emt 0:01:10]} gxf5 {[%emt 0:00:57]} 28. Re1 {[%emt 0:00:14]} Rb8 {[%emt 0:00:45]} 29. Rb1 {[%emt 0:00:11]} Ne5 {[%emt 0:01:49]} 30. Bxa5 {[%emt 0:03:24]} Nxc4 {[%emt 0:01:32]} 31. Be1 {[%emt 0:00:22]} Na3 {[%emt 0:02:39]} 32. Rd1 {[%emt 0:09:34]} Rxb3 {[%emt 0:00:29]} 33. Nf3 {[%emt 0:00:07]} Nc2 {[%emt 0:05:14]} 34. Kf1 {[%emt 0:00:48]} Ra3 {[%emt 0:02:34]} 35. a5 {[%emt 0:00:43]} Bc7 {[%emt 0:07:39]} 36. Bd2 {[%emt 0:02:56]} c4 {[%emt 0:11:58]} 37. Bg5 {[%emt 0:04:24]} d3 {[%emt 0:03:43]} 38. Nd2 {[%emt 0:01:23]} Ra4 {[%emt 0:00:30]} 39. Nxc4 {[%emt 0:10:35]} Rxc4 {[%emt 0:00:53]} 40. Rxd3 {[%emt 0:02:56]} Nb4 {[%emt 0:00:53]} 41. Ra3 {[%emt 0:02:12]} Na6 {[%emt 0:01:27]} 42. Be3 {[%emt 0:01:34]} Kg7 {[%emt 0:00:00]} 43. Ke2 {[%emt 0:00:00]} Kf6 {[%emt 0:00:00]} 44. Rb3 {[%emt 0:01:53]} Re4 {[%emt 0:00:00]} 45. Kf3 {[%emt 0:01:21]} Ra4 {[%emt 0:01:09]} 46. Bb6 {[%emt 0:00:37]} Bd6 {[%emt 0:02:18]} 47. Bd8+ {[%emt 0:00:15]} Ke5 {[%emt 0:00:40]} 48. Rb7 {[%emt 0:04:18]} Ra2 {[%emt 0:06:58]} 0-1

[Event "Groningen Festival 2019-A"]
[Site "Groningen"]
[Date "2019.12.28"]
[Round "7.8"]
[White "Beerdsen, Thomas"]
[Black "Kumar, Nikhil"]
[Result "1/2-1/2"]
[ECO "B11"]
[WhiteElo "2482"]
[BlackElo "2315"]
[Annotator "ChessBase"]
[PlyCount "36"]
[EventDate "2019.12.15"]
[EventType "swiss"]
[EventCountry "NED"]
[SourceTitle "playchess.com"]
[Source "ChessBase"]
[SourceQuality "1"]
[TimeControl "40/5400+30:1800+30"]

1. e4 {[%emt 0:00:00]} c6 {[%emt 0:00:00]} 2. Nc3 {[%emt 0:00:00]} d5 {[%emt 0:00:00]} 3. Nf3 {[%emt 0:00:03]} Bg4 {[%emt 0:00:00]} 4. h3 {[%emt 0:00:06]} Bxf3 {[%emt 0:00:01]} 5. Qxf3 {[%emt 0:00:05]} e6 {[%emt 0:00:08]} 6. d4 {[%emt 0:00:05]} dxe4 {[%emt 0:00:06]} 7. Nxe4 {[%emt 0:01:57]} Qxd4 {[%emt 0:00:08]} 8. Bd3 {[%emt 0:04:02]} Nd7 {[%emt 0:00:10]} 9. Be3 {[%emt 0:01:35]} Bb4+ {[%emt 0:00:31]} 10. Ke2 {[%emt 0:03:44]} Qd5 {[%emt 0:00:58]} 11. Rhd1 {[%emt 0:12:12]} f5 {[%emt 0:12:43]} 12. Ng5 {[%emt 0:01:29]} Qxf3+ {[%emt 0:00:30]} 13. gxf3 {[%emt 0:00:30]} Ke7 {[%emt 0:00:30]} 14. Bc4 {[%emt 0:00:30]} Ngf6 {[%emt 0:00:30]} 15. Nxe6 {[%emt 0:00:30]} g6 {[%emt 0:00:30]} 16. Bg5 {[%emt 0:00:30]} Ne5 {[%emt 0:00:30]} 17. Bb3 {[%emt 0:00:30]} Nf7 {[%emt 0:00:30]} 18. Be3 {[%emt 0:00:30]} Bd6 {[%emt 0:00:30]} 1/2-1/2

[Event "Groningen Festival 2019-A"]
[Site "Groningen"]
[Date "2019.12.28"]
[Round "7.9"]
[White "Davtyan, Artur"]
[Black "Zhou, Guijue"]
[Result "1/2-1/2"]
[ECO "D35"]
[WhiteElo "2437"]
[BlackElo "2238"]
[Annotator "NA"]
[PlyCount "91"]
[EventDate "2019.12.15"]
[EventType "swiss"]
[EventCountry "NED"]
[SourceTitle "playchess.com"]
[Source "ChessBase"]
[SourceQuality "1"]
[TimeControl "40/5400+30:1800+30"]

1. d4 {[%emt 0:14:00]} Nf6 {[%emt 0:00:00]} 2. c4 {[%emt 0:00:26]} e6 {[%emt 0:00:00]} 3. Nc3 {[%emt 0:02:55]} d5 {[%emt 0:00:00]} 4. cxd5 {[%emt 0:00:07]} exd5 {[%emt 0:00:00]} 5. Bg5 {[%emt 0:00:04]} Be7 {[%emt 0:00:09]} 6. e3 {[%emt 0:00:05]} c6 {[%emt 0:00:05]} 7. Bd3 {[%emt 0:00:04]} Nbd7 {[%emt 0:00:33]} 8. Qc2 {[%emt 0:00:21]} Nh5 {[%emt 0:01:43]} 9. Bxe7 {[%emt 0:00:30]} Qxe7 {[%emt 0:00:04]} 10. Nge2 {[%emt 0:00:11]} h6 {[%emt 0:03:25]} 11. O-O {[%emt 0:01:36]} O-O {[%emt 0:00:34]} 12. Rab1 {[%emt 0:03:08]} Re8 {[%emt 0:03:55]} 13. b4 {[%emt 0:00:06]} b5 {[%emt 0:05:07]} 14. e4 {[%emt 0:07:43]} dxe4 {[%emt 0:03:38]} 15. Bxe4 {[%emt 0:03:17]} Bb7 {[%emt 0:01:33]} 16. Bf3 {[%emt 0:00:33]} Qg5 {[%emt 0:10:58]} 17. Ne4 {[%emt 0:19:15]} Qg6 {[%emt 0:00:29]} 18. Rbc1 {[%emt 0:02:43]} c5 {[%emt 0:08:46]} 19. Nd6 {[%emt 0:20:23]} Bxf3 {[%emt 0:03:06]} 20. Qxg6 {[%emt 0:00:04]} fxg6 {[%emt 0:00:04]} 21. Nxe8 {[%emt 0:00:04]} Bxe2 {[%emt 0:00:37]} 22. Nc7 {[%emt 0:02:02]} Rc8 {[%emt 0:00:29]} 23. Nd5 {[%emt 0:01:07]} Re8 {[%emt 0:10:57]} 24. Rfe1 {[%emt 0:01:31]} cxd4 {[%emt 0:00:00]} 25. Rc7 {[%emt 0:05:45]} Nhf6 {[%emt 0:09:02]} 26. Nf4 {[%emt 0:00:10]} Bg4 {[%emt 0:04:30]} 27. Rxe8+ {[%emt 0:00:12]} Nxe8 {[%emt 0:00:03]} 28. Rc8 {[%emt 0:04:17]} Kf7 {[%emt 0:01:33]} 29. f3 {[%emt 0:00:05]} Bf5 {[%emt 0:00:05]} 30. g4 {[%emt 0:04:55]} Bb1 {[%emt 0:00:55]} 31. Ra8 {[%emt 0:00:02]} Bxa2 {[%emt 0:02:51]} 32. Rxa7 {[%emt 0:00:01]} Be6 {[%emt 0:00:07]} 33. h4 {[%emt 0:01:22]} g5 {[%emt 0:01:27]} 34. hxg5 {[%emt 0:00:01]} hxg5 {[%emt 0:00:05]} 35. Ne2 {[%emt 0:06:27]} d3 {[%emt 0:00:59]} 36. Nc3 {[%emt 0:00:34]} Nd6 {[%emt 0:01:21]} 37. Kf2 {[%emt 0:00:11]} Kf6 {[%emt 0:03:49]} 38. Ra6 {[%emt 0:00:37]} Ke5 {[%emt 0:04:49]} 39. Ke3 {[%emt 0:00:16]} Bc4 {[%emt 0:00:08]} 40. Ra7 {[%emt 0:04:48]} Ke6 {[%emt 0:00:39]} 41. Kd4 Ne5 {[%emt 0:00:05]} 42. Ke3 {[%emt 0:00:06]} Nc6 {[%emt 0:00:58]} 43. Rxg7 Nxb4 44. Rxg5 Nc2+ 45. Kd2 b4 46. Rg6+ 1/2-1/2

[Event "Groningen Festival 2019-A"]
[Site "Groningen"]
[Date "2019.12.28"]
[Round "7.10"]
[White "Zwirs, Nico"]
[Black "Pacher, Milan"]
[Result "1-0"]
[ECO "C54"]
[WhiteElo "2422"]
[BlackElo "2427"]
[Annotator "NA"]
[PlyCount "31"]
[EventDate "2019.12.15"]
[EventType "swiss"]
[EventCountry "NED"]
[SourceTitle "playchess.com"]
[Source "ChessBase"]
[SourceQuality "1"]
[TimeControl "40/5400+30:1800+30"]

1. e4 {[%emt 0:00:00]} e5 {[%emt 0:01:45]} 2. Nf3 {[%emt 0:00:00]} Nc6 {[%emt 0:00:03]} 3. Bc4 {[%emt 0:00:00]} Nf6 {[%emt 0:00:06]} 4. d3 {[%emt 0:00:01]} Bc5 {[%emt 0:00:03]} 5. c3 {[%emt 0:00:14]} d6 {[%emt 0:00:07]} 6. a4 {[%emt 0:00:22]} a5 {[%emt 0:00:32]} 7. Bg5 {[%emt 0:00:41]} h6 {[%emt 0:01:14]} 8. Bh4 {[%emt 0:00:34]} g5 {[%emt 0:00:55]} 9. Bg3 {[%emt 0:00:07]} Qe7 {[%emt 0:03:22]} 10. Nbd2 {[%emt 0:01:23]} Bd7 {[%emt 0:00:26]} 11. O-O {[%emt 0:02:35]} O-O {[%emt 0:14:05]} 12. Re1 {[%emt 0:04:51]} Rae8 {[%emt 0:08:33]} 13. Nf1 {[%emt 0:09:31]} Nh5 {[%emt 0:04:57]} 14. Nxe5 {[%emt 0:11:15]} Nxg3 {[%emt 0:00:07]} 15. Nxd7 {[%emt 0:00:21]} Nxe4 {[%emt 0:02:48]} 16. Nxc5 {[%emt 0:02:34]} 1-0

[Event "Groningen Festival 2019-A"]
[Site "Groningen"]
[Date "2019.12.28"]
[Round "7.11"]
[White "Hilwerda, Jonas"]
[Black "De Jong, Migchiel"]
[Result "0-1"]
[ECO "C18"]
[WhiteElo "2228"]
[BlackElo "2326"]
[Annotator "NA"]
[PlyCount "42"]
[EventDate "2019.12.15"]
[EventType "swiss"]
[EventCountry "NED"]
[SourceTitle "playchess.com"]
[Source "ChessBase"]
[SourceQuality "1"]
[TimeControl "40/5400+30:1800+30"]

1. e4 {[%emt 0:00:00]} e6 {[%emt 0:00:14]} 2. d4 {[%emt 0:00:00]} d5 {[%emt 0:00:08]} 3. Nc3 {[%emt 0:00:00]} Bb4 {[%emt 0:00:36]} 4. e5 {[%emt 0:00:00]} c5 {[%emt 0:00:57]} 5. a3 {[%emt 0:00:00]} Bxc3+ {[%emt 0:00:09]} 6. bxc3 {[%emt 0:00:00]} Qc7 {[%emt 0:00:27]} 7. Qg4 {[%emt 0:01:09]} f5 {[%emt 0:00:43]} 8. Qg3 {[%emt 0:02:25]} Nc6 {[%emt 0:00:26]} 9. Nf3 {[%emt 0:02:38]} cxd4 {[%emt 0:00:19]} 10. cxd4 {[%emt 0:00:35]} Nge7 {[%emt 0:00:09]} 11. Bd2 {[%emt 0:02:54]} O-O {[%emt 0:00:17]} 12. Bd3 {[%emt 0:02:33]} Bd7 {[%emt 0:01:54]} 13. h4 {[%emt 0:04:29]} f4 {[%emt 0:07:33]} 14. Qg4 {[%emt 0:19:53]} Nxd4 {[%emt 0:00:40]} 15. Bxh7+ {[%emt 0:02:25]} Kxh7 {[%emt 0:00:23]} 16. Qh5+ {[%emt 0:00:05]} Kg8 {[%emt 0:00:05]} 17. Nxd4 {[%emt 0:03:15]} Rf5 {[%emt 0:00:08]} 18. Nxf5 {[%emt 0:01:11]} Qxe5+ {[%emt 0:00:15]} 19. Be3 {[%emt 0:00:29]} Qc3+ {[%emt 0:00:59]} 20. Ke2 {[%emt 0:08:37]} Nxf5 {[%emt 0:00:29]} 21. Rab1 {[%emt 0:00:34]} fxe3 {[%emt 0:00:45]} 0-1